[Event "Serbian-ch Semifinal 2024"]
[Site "Paracin"]
[Date "2024.02.06"]
[Round "3.8"]
[White "Gagic, Milan A"]
[Black "Ivanisevic, Ivan"]
[Result "0-1"]
[ECO "C79"]
[WhiteElo "2241"]
[BlackElo "2517"]
[Annotator "TA"]
[PlyCount "84"]
[EventDate "2024.02.04"]
[EventType "swiss"]
[EventCountry "SRB"]
[SourceTitle "playchess.com"]
[Source "ChessBase"]
[SourceQuality "1"]
[TimeControl "40/5400+30:1800+30"]

{[%evp 10,84,40,16,40,2,0,-8,-8,-18,-10,-17,-5,-11,-23,-11,0,-71,-64,-62,-73,-71,-56,-62,-59,-66,-63,-63,-81,-95,-91,-108,-91,-102,-102,-120,-106,-89,-73,-75,-47,-136,-133,-145,-129,-144,-146,-135,-108,-170,-128,-135,-126,-119,-98,-113,-115,-179,-178,-204,-184,-614,-279,-1105,-1088,-1033,-873,-955,-918,-820,-809,-2489,-2197,-29995,-29996,-29998,-29999]} 1. e4 {[%emt 0:00:03]} e5 {[%emt 0:00:31]} 2. Nf3 {[%emt 0:00:11]} Nc6 {[%emt 0:00:06]} 3. Bb5 {[%emt 0:00:18]} a6 {[%emt 0:00:07]} 4. Ba4 {[%emt 0:00:11]} Nf6 {[%emt 0:00:08]} 5. O-O {[%emt 0:00:35]} d6 {[%emt 0:00:39]} 6. d3 {[%emt 0:00:25]} g6 {[%emt 0:00:34]} 7. Nc3 {[%emt 0:21:11]} Bg7 {[%emt 0:05:26]} 8. Nd5 {[%emt 0:02:59]} Nxd5 {[%emt 0:11:53] The position is equal.} 9. exd5 {[%emt 0:00:08]} b5 $1 {[%emt 0:00:03]} 10. dxc6 {[%emt 0:04:21]} bxa4 {[%emt 0:02:33]} 11. c3 {[%emt 0:00:44]} a3 {[%emt 0:07:54]} 12. b3 {[%emt 0:02:58]} O-O {[%emt 0:00:07]} 13. Bxa3 {[%emt 0:01:47]} (13. Re1 $1 $11) 13... Qe8 $17 {[%emt 0:01:53]} 14. c4 {[%emt 0:12:40]} Qxc6 {[%emt 0:01:42]} 15. Bb2 {[%emt 0:01:34]} Qb7 {[%emt 0:02:41]} 16. d4 {[%emt 0:06:06]} e4 {[%emt 0:03:49]} 17. Ne1 {[%emt 0:01:58]} c6 {[%emt 0:00:51]} 18. Ba3 {[%emt 0:07:13]} Rd8 {[%emt 0:09:53]} 19. Rc1 {[%emt 0:03:58]} a5 {[%emt 0:03:26][%cal Oa5a4]} 20. Nc2 {[%emt 0:04:31]} a4 {[%emt 0:02:48]} 21. b4 {[%emt 0:02:13]} d5 {[%emt 0:00:19]} 22. cxd5 {[%emt 0:01:38]} Rxd5 {[%emt 0:01:10]} 23. Qe1 {[%emt 0:06:17]} Be6 {[%emt 0:08:10] Black is much more active.} 24. Qxe4 {[%emt 0:04:43]} Rd7 {[%emt 0:05:09]} 25. Rfd1 {[%emt 0:03:24]} (25. Ra1 $15) 25... Bd5 {[%emt 0:03:12]} 26. Qf4 {[%emt 0:00:14]} Bxa2 {[%emt 0:00:21] This pair of bishops is nice.} 27. Ne1 {[%emt 0:02:23]} Bb3 {[%emt 0:00:48]} 28. Rd3 {[%emt 0:00:55]} Qb5 {[%emt 0:00:58]} 29. h4 {[%emt 0:03:42]} (29. Rc5 $17 Re8 30. Re3) 29... Re7 {[%emt 0:07:43][%cal Oe7e1] [#] ...Rxe1+! would now be deadly.} 30. Re3 {[%emt 0:01:28]} Rxe3 {[%emt 0:00:41]} 31. Qxe3 {[%emt 0:00:32]} Bd5 {[%emt 0:06:58]} 32. Nd3 {[%emt 0:01:31]} Qb6 $36 {[%emt 0:01:34][%mdl 2048] Black is really pushing.} 33. Nc5 {[%emt 0:01:14]} (33. Rc5 $17) 33... Qd8 $19 {[%emt 0:00:25]} 34. h5 {[%emt 0:00:57]} Qh4 {[%emt 0:01:49]} 35. hxg6 $2 {[%emt 0:00:32]} (35. Nd3) 35... hxg6 {[%emt 0:00:05]} (35... Qxd4 36. gxf7+ Bxf7 37. Qxd4 Bxd4 38. Nd3 $17) (35... Bxd4 $142 36. Qe2 hxg6 (36... fxg6 $2 37. Rd1 $19)) 36. f4 $2 {[%emt 0:01:50]} (36. Qh3 Qxh3 (36... Qxd4 $2 37. Re1 $19) 37. gxh3) 36... Qg4 {[%emt 0:00:26][%csl Gd5][%cal Rg4g2]} 37. Ne4 {[%emt 0:01:00]} f5 {[%emt 0:00:23]} 38. Ng3 {[%emt 0:00:18] [#]} Bxd4 $1 {[%emt 0:03:55][%mdl 512]} 39. Qxd4 {[%emt 0:00:03]} Qxg3 {[%emt 0:00:06]} 40. Qb2 {[%emt 0:00:54] White is weak on the light squares} Qe3+ {[%emt 0:00:44]} ({Less strong is} 40... Qxf4 41. Re1 $17) 41. Kh1 {[%emt 0:30:37]} Ra7 {[%emt 0:30:30][%cal Ra7h7]} 42. Qf6 {[%emt 0:00:00]} Rh7+ {[%emt 0:00:00] Weighted Error Value: White=0.66/Black=0.31.  Mistake:       	White=6     	Black=1      Inaccurate:     	White=1     	Black=1      OK:         	White=10    	Black=13     Best:        	White=3     	Black=2      Strong:       	---       	Black=1} 0-1

[Event "Serbian-ch Semifinal 2024"]
[Site "Paracin"]
[Date "2024.02.06"]
[Round "3.9"]
[White "Pogorelskikh, Sofia"]
[Black "Sedlak, Nikola"]
[Result "1/2-1/2"]
[ECO "B55"]
[WhiteElo "2198"]
[BlackElo "2463"]
[Annotator "TA"]
[PlyCount "91"]
[EventDate "2024.02.04"]
[EventType "swiss"]
[EventCountry "SRB"]
[SourceTitle "playchess.com"]
[Source "ChessBase"]
[SourceQuality "1"]
[TimeControl "40/5400+30:1800+30"]

{[%evp 14,91,30,38,33,21,32,33,60,46,64,54,67,39,49,50,40,36,37,38,53,49,108,106,93,50,108,83,96,95,96,87,90,71,104,114,136,34,120,109,89,101,107,52,108,37,70,75,74,62,73,74,88,56,45,45,46,54,53,53,40,56,100,98,97,95,92,98,104,106,97,91,101,92,92,90,90,83,83,81]} 1. e4 {[%emt 0:00:05]} c5 {[%emt 0:02:35]} 2. Nf3 {[%emt 0:00:16]} d6 {[%emt 0:00:20]} 3. d4 {[%emt 0:00:21]} cxd4 {[%emt 0:00:21]} 4. Nxd4 {[%emt 0:00:15]} Nf6 {[%emt 0:00:21]} 5. f3 {[%emt 0:00:31]} Nc6 {[%emt 0:01:22]} 6. c4 {[%emt 0:00:40]} Qb6 {[%emt 0:02:50]} 7. Nc2 {[%emt 0:00:43]} e6 {[%emt 0:03:05]} 8. Nc3 {[%emt 0:00:37]} Be7 {[%emt 0:00:43]} 9. Bd3 {[%emt 0:01:28]} Ne5 {[%emt 0:04:44]} 10. Be2 {[%emt 0:01:20]} a6 {[%emt 0:00:21] White is slightly better.} 11. f4 {[%emt 0:06:34]} Ned7 {[%emt 0:00:49]} 12. Be3 {[%emt 0:02:04]} Qc7 {[%emt 0:00:11]} 13. Nd4 {[%emt 0:06:38]} b6 {[%emt 0:00:32]} 14. Rc1 {[%emt 0:01:41]} Bb7 {[%emt 0:00:27]} 15. Bf3 {[%emt 0:01:50]} Rc8 {[%emt 0:01:17][%cal Oc7b8]} 16. O-O {[%emt 0:03:15]} Qb8 {[%emt 0:04:42][%cal Ob8a8]} 17. Qe2 {[%emt 0:09:03]} h5 {[%emt 0:06:09]} ({Black should play} 17... h6 $14) 18. h3 $16 {[%emt 0:03:48]} g6 {[%emt 0:02:12]} 19. b3 {[%emt 0:06:49]} h4 {[%emt 0:04:51]} (19... e5 $14) 20. Rfd1 {[%emt 0:06:04]} e5 {[%emt 0:10:49]} 21. Nc2 {[%emt 0:03:57][%cal Bd4c2,Bc2e3,Be3g4][%mdl 32]} exf4 {[%emt 0:13:10]} 22. Bxf4 {[%emt 0:01:23]} O-O {[%emt 0:02:31]} 23. Ne3 {[%emt 0:08:48]} Rfe8 {[%emt 0:00:58]} 24. Ng4 {[%emt 0:05:03]} Bf8 {[%emt 0:02:36]} 25. Qd2 {[%emt 0:02:36]} (25. Qe1 $16) 25... Re6 {[%emt 0:03:53]} (25... Bxe4 $14 26. Bxe4 Nxe4 27. Nxe4 Rxe4) 26. Nd5 {[%emt 0:03:36]} Bxd5 {[%emt 0:02:26]} 27. exd5 {[%emt 0:01:22]} Ree8 {[%emt 0:00:06]} 28. Re1 {[%emt 0:04:04]} (28. Nh6+ $16 Bxh6 29. Bxh6) 28... Bg7 {[%emt 0:02:34]} ({Better is} 28... b5 $14) 29. Bg5 {[%emt 0:03:12] White has more active pieces.} (29. Nh6+ $16 Kf8 30. Bg4) 29... Nxg4 {[%emt 0:00:44]} 30. Bxg4 {[%emt 0:00:51] A strong pair of Bishops.} f5 {[%emt 0:00:05]} 31. Bf3 {[%emt 0:00:49]} Ne5 {[%emt 0:01:27][%cal Bd7e5,Be5c4,Bc4a3][%mdl 32]} 32. Bxh4 {[%emt 0:01:18]} b5 {[%emt 0:00:38][%cal Rb5c4]} 33. Bf2 {[%emt 0:04:17]} bxc4 {[%emt 0:01:42]} 34. bxc4 {[%emt 0:00:14]} Rxc4 {[%emt 0:12:40]} 35. Rxc4 {[%emt 0:00:26]} Nxc4 {[%emt 0:00:06]} 36. Rxe8+ {[%emt 0:00:42]} Qxe8 {[%emt 0:00:06]} 37. Qb4 {[%emt 0:02:01]} Qb5 {[%emt 0:02:11] [#]} 38. Qxb5 {[%emt 0:01:24] White is better.} axb5 {[%emt 0:00:07][%mdl 4096] Endgame. KBB-KBN} 39. Be2 {[%emt 0:03:32][%cal Oa2a4] aiming for a4!} Na3 {[%emt 0:00:05]} 40. Bd3 {[%emt 0:02:27]} Kf7 {[%emt 0:00:16]} 41. Kf1 {[%emt 0:33:48]} Bc3 {[%emt 0:31:08]} 42. Bg3 {[%emt 0:00:00]} Be5 {[%emt 0:00:00]} 43. Be1 {[%emt 0:00:00]} Bd4 {[%emt 0:00:00]} 44. Bb4 {[%emt 0:00:00][%csl LRa3,LRd6]} Bc5 {[%emt 0:00:00]} 45. Bxa3 {[%emt 0:00:00]} Bxa3 {[%emt 0:00:00]} 46. Bxb5 {[%emt 0:00:00] Weighted Error Value: White=0.15 (very precise) /Black=0.17 (very precise) .  Mistake:       	White=3     	Black=4      Inaccurate:     	White=3     	Black=4      OK:         	White=14    	Black=13     Best:        	White=3     	Black=2} 1/2-1/2

[Event "Serbian-ch Semifinal 2024"]
[Site "Paracin"]
[Date "2024.02.06"]
[Round "3.10"]
[White "Cuzovic, Ognjen"]
[Black "Milosevic, Milos"]
[Result "1/2-1/2"]
[ECO "A58"]
[WhiteElo "2068"]
[BlackElo "2388"]
[Annotator "TA"]
[PlyCount "56"]
[EventDate "2024.02.04"]
[EventType "swiss"]
[EventCountry "SRB"]
[SourceTitle "playchess.com"]
[Source "ChessBase"]
[SourceQuality "1"]
[TimeControl "40/5400+30:1800+30"]

{[%evp 9,56,27,50,59,53,39,55,37,38,-33,-35,-37,-36,-37,-60,-61,-50,-40,-48,-74,-61,-77,-73,-86,-63,-76,-74,-70,-60,-90,-96,-100,-94,-90,-56,-74,-58,-50,-54,-53,-10,-13,-2,-8,-12,-13,0,0,23]} 1. d4 {[%emt 0:06:17]} Nf6 {[%emt 0:00:11]} 2. c4 {[%emt 0:00:07]} c5 {[%emt 0:00:05]} 3. d5 {[%emt 0:00:10]} b5 {[%emt 0:00:04]} 4. cxb5 {[%emt 0:00:23]} a6 {[%emt 0:00:07]} 5. bxa6 {[%emt 0:00:15]} g6 {[%emt 0:00:04][%cal Of8g7]} 6. Nc3 {[%emt 0:00:17]} Bg7 {[%emt 0:00:04][%cal Oe8g8]} 7. Nf3 {[%emt 0:00:15]} O-O {[%emt 0:00:18]} 8. e4 {[%emt 0:00:18] Repels e6. White is slightly better.} Qa5 {[%emt 0:00:04]} 9. Bd3 {[%emt 0:02:38] [#]} (9. Bd2 $14) 9... Nxd5 $1 $15 {[%emt 0:00:28]} 10. exd5 {[%emt 0:02:37] Strongly threatening 0-0.} Bxc3+ {[%emt 0:00:08]} 11. Bd2 {[%emt 0:01:10]} Bxd2+ {[%emt 0:00:30]} (11... Bxa6 $2 {too greedy.} 12. Bxc3 Qc7 13. O-O $18) 12. Qxd2 {[%emt 0:00:06]} Qxd2+ {[%emt 0:00:04]} 13. Kxd2 {[%emt 0:01:30]} Bxa6 {[%emt 0:00:36]} 14. Bxa6 {[%emt 0:01:29]} Nxa6 {[%emt 0:00:13]} 15. Rhe1 {[%emt 0:07:28]} Rfe8 {[%emt 0:02:07]} 16. a3 {[%emt 0:18:20]} Nc7 {[%emt 0:01:35]} 17. d6 {[%emt 0:01:24]} exd6 {[%emt 0:00:11]} 18. Rxe8+ {[%emt 0:03:56]} Rxe8 $17 {[%emt 0:00:02][%mdl 4096] Endgame. KRN-KRN} 19. Re1 {[%emt 0:03:19]} Rb8 {[%emt 0:00:13]} 20. Kc2 {[%emt 0:00:57]} Kf8 {[%emt 0:02:11]} 21. Ng5 {[%emt 0:02:59]} Ne6 {[%emt 0:01:38]} 22. Ne4 {[%emt 0:01:42]} Ke7 {[%emt 0:10:02]} 23. Nc3 {[%emt 0:01:24][%cal Ob2b4]} Kd8 {[%emt 0:02:53]} 24. Nd5 {[%emt 0:01:18] Inhibits Nf4.} Kc8 {[%emt 0:00:56]} 25. Kc3 {[%emt 0:01:20] The position is equal.} Rb5 {[%emt 0:03:21]} 26. Rd1 {[%emt 0:05:17]} Ra5 {[%emt 0:08:09]} 27. Nf6 {[%emt 0:03:47]} Ra4 {[%emt 0:04:10]} 28. g3 {[%emt 0:02:55] Against Rf4} Nc7 {[%emt 0:00:44] Weighted Error Value: White=0.10 (very precise) /Black=0.05 (flawless) .  Mistake:       	White=1     	---        Inaccurate:     	White=2     	Black=1      OK:         	White=8     	Black=11     Best:        	White=1     	Black=1      Brilliant:      	---       	Black=1} 1/2-1/2

[Event "Serbian-ch Semifinal 2024"]
[Site "Paracin"]
[Date "2024.02.06"]
[Round "3.11"]
[White "Martic, Ivan"]
[Black "Eric, Jovana"]
[Result "0-1"]
[ECO "B22"]
[WhiteElo "2323"]
[BlackElo "2124"]
[Annotator "TA"]
[PlyCount "118"]
[EventDate "2024.02.04"]
[EventType "swiss"]
[EventCountry "SRB"]
[SourceTitle "playchess.com"]
[Source "ChessBase"]
[SourceQuality "1"]
[TimeControl "40/5400+30:1800+30"]

{[%evp 15,118,4,8,-18,-6,9,22,21,50,47,49,25,37,40,33,32,58,25,52,52,59,54,58,62,65,54,77,60,72,67,117,78,95,91,95,100,132,95,95,71,104,95,101,27,26,0,61,55,55,59,91,83,88,52,115,104,91,98,84,77,93,52,52,37,47,34,147,157,153,162,184,170,183,165,272,272,264,264,459,441,437,436,637,633,638,638,638,495,638,637,660,638,677,671,629,610,708,689,778,313,714,-29988,-29989,-29989,-29990]} 1. e4 {[%emt 0:00:04]} c5 {[%emt 0:00:12]} 2. c3 {[%emt 0:00:10]} Nf6 {[%emt 0:00:27]} 3. e5 {[%emt 0:00:16]} Nd5 {[%emt 0:00:05]} 4. Nf3 {[%emt 0:00:13]} d6 {[%emt 0:00:30]} 5. Bb5+ {[%emt 0:00:18]} Bd7 {[%emt 0:05:08]} 6. Bc4 {[%emt 0:00:10] B22: Sicilian: 2 c3.} e6 {[%emt 0:03:08]} 7. d4 {[%emt 0:00:36]} Bc6 {[%emt 0:05:20]} 8. O-O {[%emt 0:00:50]} Nd7 {[%emt 0:05:15]} 9. Bb3 {[%emt 0:01:23]} cxd4 {[%emt 0:01:38]} 10. exd6 {[%emt 0:01:08]} Bxd6 {[%emt 0:01:29]} (10... dxc3 {feels hotter.} 11. Bxd5 c2 12. Qxc2 Bxd5 13. Nc3 Rc8) 11. Nxd4 {[%emt 0:01:03]} N7f6 $146 {[%emt 0:10:59]} ({Predecessor:} 11... Qc7 12. h3 O-O 13. Nxc6 bxc6 14. Nd2 Rfd8 15. Nf3 Bf4 16. Qe2 a5 17. c4 Nb4 {0-1 Heinemann,J (2297)-Petrov,N (2559) Belgrade Serbia op 2023 (5)}) 12. Nxc6 {[%emt 0:00:51]} bxc6 {[%emt 0:00:04]} 13. Qf3 {[%emt 0:06:59]} Qc7 {[%emt 0:02:29]} 14. g3 {[%emt 0:02:02]} O-O {[%emt 0:01:34]} 15. Nd2 {[%emt 0:01:02]} h6 {[%emt 0:02:16]} 16. Nc4 {[%emt 0:01:56]} Be7 {[%emt 0:00:48]} 17. Re1 {[%emt 0:00:40]} Rad8 {[%emt 0:02:44]} 18. Bd2 {[%emt 0:02:29]} Rfe8 {[%emt 0:09:39]} 19. Rad1 {[%emt 0:00:39]} Bf8 {[%emt 0:00:48]} 20. Ne5 {[%emt 0:05:26]} Bd6 {[%emt 0:03:07]} 21. Qe2 {[%emt 0:01:10]} Bxe5 {[%emt 0:04:30]} 22. Qxe5 {[%emt 0:00:08]} Qe7 {[%emt 0:03:11]} ({Better is} 22... Qxe5 $14 23. Rxe5 Nd7) 23. Bc1 {[%emt 0:02:43]} Nd7 {[%emt 0:03:22]} 24. Qe2 {[%emt 0:03:14]} Nc5 {[%emt 0:02:43]} 25. Bc2 {[%emt 0:00:50]} e5 {[%emt 0:06:10]} 26. Qg4 {[%emt 0:07:48]} Nf6 {[%emt 0:02:24]} 27. Qf5 {[%emt 0:10:31]} Rxd1 {[%emt 0:02:14]} 28. Rxd1 {[%emt 0:00:16]} ({But not} 28. Bxd1 e4 29. Bc2 Rd8 $14) 28... e4 {[%emt 0:00:59]} 29. Bf4 {[%emt 0:04:56]} (29. Kg2 $16) 29... Nd5 $11 {[%emt 0:01:23]} 30. Bc1 {[%emt 0:07:43]} g6 {[%emt 0:01:08]} ({Black should try} 30... Nf6 $11) 31. Qg4 $14 {[%emt 0:01:01]} h5 {[%emt 0:01:55]} 32. Qg5 {[%emt 0:02:34]} Nf6 {[%emt 0:09:55]} 33. Be3 {[%emt 0:09:44]} Ncd7 {[%emt 0:00:37]} 34. Bf4 {[%emt 0:05:43]} (34. Bxa7 c5 $17) 34... Nd5 {[%emt 0:00:55]} (34... Ne5 $14 35. Bxe5 Qxe5 36. Qxe5 Rxe5) 35. Qxe7 $16 {[%emt 0:00:31]} Rxe7 {[%emt 0:00:04]} 36. Bg5 {[%emt 0:01:46]} f6 {[%emt 0:00:40]} 37. Bc1 {[%emt 0:00:32]} Kg7 {[%emt 0:01:33]} 38. a3 {[%emt 0:05:02]} N7b6 {[%emt 0:01:57]} 39. Re1 {[%emt 0:02:44]} f5 {[%emt 0:00:55]} 40. b3 {[%emt 0:05:10]} Nxc3 {[%emt 0:02:17]} ({Black should play} 40... Nd7 $14) 41. Bb2 $1 $16 {[%emt 0:31:56]} Nbd5 {[%emt 0:31:42] [#]} 42. Re3 $1 {[%emt 0:00:18]} Kf7 {[%emt 0:00:00]} 43. Rxc3 {[%emt 0:00:00]} Nxc3 {[%emt 0:00:00]} 44. Bxc3 {[%emt 0:00:00]} e3 {[%emt 0:00:00]} (44... g5 {is a better defense.} 45. b4 Rb7) 45. f4 $18 {[%emt 0:00:00]} Ke6 {[%emt 0:00:00]} 46. h4 {[%emt 0:00:00]} c5 $2 {[%emt 0:00:00]} (46... Kd5 {was worth a try.} 47. Be5 Rd7) 47. Kf1 $18 {[%emt 0:00:00]} Kd5 {[%emt 0:00:00]} 48. Bd3 {[%emt 0:00:00]} Rb7 {[%emt 0:00:00]} (48... e2+ $142 49. Bxe2 Re3 50. Bc4+ Kc6) 49. Bc4+ $18 {[%emt 0:00:00]} Ke4 {[%emt 0:00:00]} 50. Ke2 {[%emt 0:00:00]} Rd7 {[%emt 0:00:00]} 51. Ba6 {[%emt 0:00:00]} Re7 {[%emt 0:00:00]} 52. a4 {[%emt 0:00:00]} Rd7 {[%emt 0:00:00]} 53. a5 {[%emt 0:00:00]} Re7 {[%emt 0:00:00]} 54. Bb5 {[%emt 0:00:00]} Kd5 {[%emt 0:00:00]} 55. Bc4+ {[%emt 0:00:00]} Ke4 {[%emt 0:00:00]} 56. a6 {[%emt 0:00:00]} Rd7 {[%emt 0:00:00]} 57. Be6 {[%emt 0:00:00]} (57. Bb5 $142 {White threatens Bc6+ and mate.} Rd6 58. Ba5) 57... Rd3 $2 {[%emt 0:01:17] [#]} (57... Rd8 58. Bc4 Rd6) 58. Bc8 $4 {[%emt 0:00:00][%mdl 8192]} (58. Ba5 $1 $18 c4 59. Bxc4) 58... Rxc3 {[%emt 0:00:31]} 59. Bb7+ {[%emt 0:00:36]} Kd4 {[%emt 0:00:05]} 0-1

[Event "Serbian-ch Semifinal 2024"]
[Site "Paracin"]
[Date "2024.02.07"]
[Round "4.1"]
[White "Tilicheev, Viacheslav"]
[Black "Radovanovic, Nikola"]
[Result "1/2-1/2"]
[ECO "E71"]
[WhiteElo "2487"]
[BlackElo "2446"]
[Annotator "TA"]
[PlyCount "21"]
[EventDate "2024.02.04"]
[EventType "swiss"]
[EventCountry "SRB"]
[SourceTitle "playchess.com"]
[Source "ChessBase"]
[SourceQuality "1"]
[TimeControl "40/5400+30:1800+30"]

{[%evp 9,21,35,45,31,34,26,83,33,41,17,20,24,21,21]} 1. d4 {[%emt 0:00:05]} Nf6 {[%emt 0:00:49]} 2. c4 {[%emt 0:00:08]} g6 {[%emt 0:00:10]} 3. Nc3 {[%emt 0:00:09]} Bg7 {[%emt 0:00:09]} 4. e4 {[%emt 0:00:05]} d6 {[%emt 0:00:04]} 5. h3 {[%emt 0:00:07]} Nbd7 {[%emt 0:00:23]} 6. Be3 {[%emt 0:00:29]} e5 {[%emt 0:00:09]} 7. d5 {[%emt 0:00:20]} h5 {[%emt 0:00:10]} (7... Nc5 $11) 8. Qd2 {[%emt 0:16:31] White is more active.} (8. Bd3 $16) 8... Nc5 $14 {[%emt 0:00:57]} 9. f3 {[%emt 0:03:46]} h4 {[%emt 0:01:04]} 10. Bg5 {[%emt 0:03:48]} Bf8 {[%emt 0:01:11]} 11. b4 {[%emt 0:05:30] Weighted Error Value: White=0.18 (very precise) /Black=0.09 (flawless) .  Mistake:       	White=1     	Black=1      OK:         	White=1     	Black=3      Best:        	---       	Black=1} 1/2-1/2

[Event "Serbian-ch Semifinal 2024"]
[Site "Paracin"]
[Date "2024.02.07"]
[Round "4.2"]
[White "Cabarkapa, Novak"]
[Black "Djordjevic, Vuk"]
[Result "1-0"]
[ECO "C17"]
[WhiteElo "2434"]
[BlackElo "2367"]
[Annotator "TA"]
[PlyCount "75"]
[EventDate "2024.02.04"]
[EventType "swiss"]
[EventCountry "SRB"]
[SourceTitle "playchess.com"]
[Source "ChessBase"]
[SourceQuality "1"]
[TimeControl "40/5400+30:1800+30"]

{[%evp 12,75,0,0,9,9,73,68,70,79,108,104,119,97,152,153,175,142,140,154,146,154,230,237,235,204,179,183,220,143,135,143,297,290,377,360,405,386,449,340,343,323,325,304,348,332,388,395,430,431,434,401,398,209,516,510,560,564,575,544,29969,29949,5121,970,1859,1744]} 1. e4 {[%emt 0:00:02]} e6 {[%emt 0:06:00]} 2. d4 {[%emt 0:00:04]} d5 {[%emt 0:00:15]} 3. Nc3 {[%emt 0:00:04]} Bb4 {[%emt 0:00:20]} 4. e5 {[%emt 0:00:06]} c5 {[%emt 0:00:32]} 5. Bd2 {[%emt 0:00:09]} Ne7 {[%emt 0:01:00]} 6. a3 {[%emt 0:00:09]} Bxc3 {[%emt 0:01:32]} 7. Bxc3 {[%emt 0:00:05]} Nbc6 {[%emt 0:06:45]} 8. Nf3 {[%emt 0:02:06]} Qb6 {[%emt 0:04:41]} (8... cxd4 $11 9. Bxd4 O-O) 9. dxc5 $16 {[%emt 0:06:16]} Qxc5 {[%emt 0:00:26] White is slightly better.} 10. Qd2 {[%emt 0:07:34]} b5 {[%emt 0:15:20]} 11. Bd3 {[%emt 0:14:33]} Bd7 {[%emt 0:08:42]} 12. O-O {[%emt 0:05:14]} a5 {[%emt 0:13:50]} ({Black should try} 12... O-O) 13. b4 {[%emt 0:07:40]} Qb6 {[%emt 0:00:38]} 14. bxa5 {[%emt 0:03:32]} Nxa5 {[%emt 0:00:58]} 15. Qg5 {[%emt 0:01:32]} Ng6 {[%emt 0:05:40]} 16. Bb4 {[%emt 0:08:11] Strongly threatening Bxg6.} Qd8 {[%emt 0:02:10] [#]} (16... Nc6 $16 17. Bd6 h6) 17. Qg3 $1 $18 {[%emt 0:01:07]} Nc6 {[%emt 0:04:31]} 18. Bd6 {[%emt 0:04:11][%cal Oh2h4] And now h4! would win. This pair of bishops is nice.} (18. Bxb5 $6 Nxb4 19. Bxd7+ Qxd7 $16) 18... Nce7 {[%emt 0:04:04]} 19. h4 {[%emt 0:01:00]} h5 {[%emt 0:04:31]} 20. Rfe1 {[%emt 0:08:02]} Ra4 {[%emt 0:06:24] [#]} 21. Bb4 $1 {[%emt 0:00:17] White is much more active.} Qb6 $2 {[%emt 0:00:28] A mistake that costs the game.} (21... Kf8 $16 {might work better.} 22. Qg5 (22. Bxg6 fxg6 23. Reb1 Ra8 $18) 22... Ra8) 22. c3 {[%emt 0:01:22]} Rh6 {[%emt 0:06:03]} 23. Nd4 {[%emt 0:05:34]} Ra7 {[%emt 0:03:31][%cal Ba4a7,Ba7c7,Bc7c4][%mdl 32]} 24. Qg5 {[%emt 0:02:29]} Nc8 {[%emt 0:03:03]} 25. Bxg6 {[%emt 0:06:42]} Rxg6 {[%emt 0:00:04] Black is weak on the dark squares} 26. Qxh5 {[%emt 0:00:18]} Rh6 {[%emt 0:00:12]} 27. Qg5 {[%emt 0:00:57]} Rh7 {[%emt 0:01:05]} 28. Nf3 {[%emt 0:02:14]} Rc7 {[%emt 0:01:06]} 29. Rad1 {[%emt 0:00:45]} Rc4 {[%emt 0:00:34]} 30. Rd4 {[%emt 0:00:16]} Qc7 {[%emt 0:00:30]} 31. Qf4 {[%emt 0:04:07] Threatens to win with Ng5.} Rh6 {[%emt 0:00:20]} 32. Ng5 {[%emt 0:01:35]} (32. Qg4 $142 Rg6 33. Qh3) 32... Bc6 $2 {[%emt 0:00:41]} (32... f5 33. Nf3 Bc6) 33. Re3 {[%emt 0:02:38][%cal Be1e3,Be3e6,Be6e7][%mdl 32]} f5 {[%emt 0:00:32] [#]} 34. exf6 {[%emt 0:01:09]} Qxf4 {[%emt 0:00:11]} 35. Rxe6+ {[%emt 0:00:56]} (35. Rxc4 $2 dxc4 36. fxg7 (36. Rxe6+ $2 Kd7 $19) (36. f7+ Qxf7 37. Nxf7 Kxf7 $19) 36... Ne7 (36... Rxh4 37. g8=Q+ Kd7 38. Qg7+) (36... Rg6 37. Rxe6+ Kd7 38. Rxg6 $11) 37. Bxe7 Rg6 38. Rxe6 Qf5 (38... Rxg7 $2 39. Bd6+ Kd8 40. Bxf4 $18) 39. Bf6+ Kd7 40. Re7+ Kc8 $19) 35... Ne7 {[%emt 0:00:48] ...Qc1+ is the strong threat.} 36. Rxe7+ {[%emt 0:05:34]} Kd8 {[%emt 0:00:12]} 37. Ne6+ {[%emt 0:00:00]} (37. fxg7 $2 {is the wrong capture.} Qc1+ $19 (37... Rxd4 38. g8=Q+) (37... Rxd4 38. g8=Q+)) (37. Rxf4 $142 Rxf6 38. Rxf6 gxf6 39. Nf7+ Kc8 40. Nd6+ Kd8 41. Nxc4 bxc4 42. h5) 37... Kc8 {[%emt 0:00:10]} 38. Rxf4 {[%emt 0:00:00] Weighted Error Value: White=0.24 (precise) /Black=0.61.  Mistake:       	White=1     	Black=5      Inaccurate:     	White=1     	Black=2      OK:         	White=16    	Black=9      Best:        	White=1     	---        Strong:       	White=1     	---} 1-0